[Event "*** MasterClass Titled Tuesday Blitz"]
[Site "Chess.com"]
[Date "2017.10.03"]
[Round "8"]
[White "51616516516"]
[Black "Induwara_IM"]
[Result "1/2-1/2"]
[WhiteElo "2063"]
[BlackElo "2450"]
[TimeControl "180+2"]
[EndTime "14:53:01 PDT"]
[Termination "Game drawn by stalemate"]

1. d4 {[%clk 0:03:01.2]} 1... Nf6 {[%clk 0:03:00.6]} 2. c4 {[%clk 0:03:02.2]}
2... g6 {[%clk 0:03:01.8]} 3. Nf3 {[%clk 0:03:02.6]} 3... Bg7 {[%clk 0:02:59.7]}
4. g3 {[%clk 0:03:04]} 4... O-O {[%clk 0:02:59.3]} 5. Bg2 {[%clk 0:03:05.3]}
5... c5 {[%clk 0:02:59.9]} 6. O-O {[%clk 0:03:04.4]} 6... cxd4 {[%clk
0:03:00.8]} 7. Nxd4 {[%clk 0:03:05.8]} 7... Nc6 {[%clk 0:03:02.3]} 8. Nc3 {[%clk
0:03:06]} 8... Qa5 {[%clk 0:03:03.1]} 9. Nb3 {[%clk 0:03:05]} 9... Qh5 {[%clk
0:03:03.8]} 10. h3 {[%clk 0:03:05.2]} 10... d6 {[%clk 0:03:00.8]} 11. e4 {[%clk
0:02:17.3]} 11... Qxd1 {[%clk 0:03:00.5]} 12. Rxd1 {[%clk 0:02:18]} 12... Ne5
{[%clk 0:02:54.5]} 13. c5 {[%clk 0:02:03.1]} 13... dxc5 {[%clk 0:02:55.4]} 14.
Nxc5 {[%clk 0:02:05]} 14... Ned7 {[%clk 0:02:52.9]} 15. Nb3 {[%clk 0:01:59.3]}
15... Nb6 {[%clk 0:02:49.4]} 16. e5 {[%clk 0:01:58.9]} 16... Ne8 {[%clk
0:02:43.5]} 17. f4 {[%clk 0:02:00]} 17... Nc7 {[%clk 0:02:33.6]} 18. Nc5 {[%clk
0:01:55.5]} 18... Rb8 {[%clk 0:02:33.4]} 19. b3 {[%clk 0:01:48.1]} 19... Ne6
{[%clk 0:02:34]} 20. N5e4 {[%clk 0:01:37.2]} 20... f6 {[%clk 0:02:29.2]} 21.
exf6 {[%clk 0:01:33.5]} 21... exf6 {[%clk 0:02:31.1]} 22. Ba3 {[%clk 0:01:34]}
22... f5 {[%clk 0:02:26.8]} 23. Bxf8 {[%clk 0:01:21.4]} 23... Nxf8 {[%clk
0:02:20.5]} 24. Rac1 {[%clk 0:00:54.9]} 24... fxe4 {[%clk 0:02:20.4]} 25. Nxe4
{[%clk 0:00:56.8]} 25... Bd7 {[%clk 0:01:55.4]} 26. Nc5 {[%clk 0:00:48.4]} 26...
Bc6 {[%clk 0:01:56]} 27. Na6 {[%clk 0:00:44]} 27... Re8 {[%clk 0:01:49.9]} 28.
Bxc6 {[%clk 0:00:44.3]} 28... bxc6 {[%clk 0:01:51.1]} 29. Rxc6 {[%clk
0:00:43.9]} 29... Re2 {[%clk 0:01:50.8]} 30. a4 {[%clk 0:00:43.4]} 30... Nbd7
{[%clk 0:01:41]} 31. Rc7 {[%clk 0:00:42.9]} 31... Re4 {[%clk 0:01:36.6]} 32.
Rdxd7 {[%clk 0:00:40.9]} 32... Nxd7 {[%clk 0:01:37.1]} 33. Rxd7 {[%clk
0:00:42.8]} 33... Re3 {[%clk 0:01:37.8]} 34. Kg2 {[%clk 0:00:40.5]} 34... Rxb3
{[%clk 0:01:38.1]} 35. Rxa7 {[%clk 0:00:40.7]} 35... Bd4 {[%clk 0:01:35.4]} 36.
Rd7 {[%clk 0:00:38.6]} 36... Be3 {[%clk 0:01:27.4]} 37. Nc7 {[%clk 0:00:32.4]}
37... Ra3 {[%clk 0:01:25.5]} 38. Nd5 {[%clk 0:00:28.8]} 38... h5 {[%clk
0:01:23.6]} 39. Nxe3 {[%clk 0:00:20.2]} 39... Rxe3 {[%clk 0:01:25.5]} 40. a5
{[%clk 0:00:21.4]} 40... Ra3 {[%clk 0:01:26.2]} 41. Ra7 {[%clk 0:00:20.3]} 41...
Kh8 {[%clk 0:01:26.7]} 42. a6 {[%clk 0:00:21.5]} 42... Kg8 {[%clk 0:01:27.9]}
43. Kf2 {[%clk 0:00:11.6]} 43... Kh8 {[%clk 0:01:28.3]} 44. f5 {[%clk
0:00:07.2]} 44... gxf5 {[%clk 0:01:23.1]} 45. Ra8+ {[%clk 0:00:04.6]} 45... Kg7
{[%clk 0:01:23.8]} 46. Ke2 {[%clk 0:00:06.2]} 46... Rxg3 {[%clk 0:01:13.8]} 47.
a7 {[%clk 0:00:05.4]} 47... Ra3 {[%clk 0:01:14.1]} 48. Kd2 {[%clk 0:00:05.1]}
48... Kh7 {[%clk 0:01:14.3]} 49. Kc2 {[%clk 0:00:06.3]} 49... h4 {[%clk
0:01:14.1]} 50. Kb2 {[%clk 0:00:06.8]} 50... Ra6 {[%clk 0:01:12.4]} 51. Kb3
{[%clk 0:00:06.4]} 51... Ra1 {[%clk 0:01:12.1]} 52. Kb4 {[%clk 0:00:05.4]} 52...
Kg7 {[%clk 0:01:08.7]} 53. Kb3 {[%clk 0:00:03.8]} 53... f4 {[%clk 0:01:09.1]}
54. Kb2 {[%clk 0:00:04.3]} 54... Ra6 {[%clk 0:01:08.5]} 55. Rb8 {[%clk
0:00:03.1]} 55... Rxa7 {[%clk 0:01:08.7]} 56. Rb4 {[%clk 0:00:03.9]} 56... Rf7
{[%clk 0:01:09.2]} 57. Kc2 {[%clk 0:00:04.6]} 57... f3 {[%clk 0:01:07.5]} 58.
Rb1 {[%clk 0:00:05.3]} 58... Kg6 {[%clk 0:01:07.2]} 59. Kd3 {[%clk 0:00:04.1]}
59... Kg5 {[%clk 0:01:00.3]} 60. Ke3 {[%clk 0:00:04.4]} 60... f2 {[%clk
0:01:00.9]} 61. Rf1 {[%clk 0:00:04.5]} 61... Re7+ {[%clk 0:00:56.9]} 62. Kxf2
{[%clk 0:00:05]} 62... Re4 {[%clk 0:00:57.3]} 63. Kg2 {[%clk 0:00:04.6]} 63...
Re3 {[%clk 0:00:58.5]} 64. Rf2 {[%clk 0:00:05.1]} 64... Rg3+ {[%clk 0:00:59.1]}
65. Kh2 {[%clk 0:00:06.7]} 65... Kh5 {[%clk 0:01:00.3]} 66. Rg2 {[%clk
0:00:07.4]} 66... Ra3 {[%clk 0:01:01.3]} 67. Rb2 {[%clk 0:00:08.1]} 67... Kg5
{[%clk 0:01:02.6]} 68. Rf2 {[%clk 0:00:08.6]} 68... Rb3 {[%clk 0:01:02.7]} 69.
Kg2 {[%clk 0:00:10]} 69... Rb4 {[%clk 0:01:03.4]} 70. Rc2 {[%clk 0:00:10.3]}
70... Rf4 {[%clk 0:01:03.9]} 71. Rc5+ {[%clk 0:00:10.6]} 71... Kf6 {[%clk
0:01:04.8]} 72. Rb5 {[%clk 0:00:09.6]} 72... Ke6 {[%clk 0:01:05.9]} 73. Ra5
{[%clk 0:00:10.2]} 73... Re4 {[%clk 0:01:06.6]} 74. Rb5 {[%clk 0:00:10.9]} 74...
Kd6 {[%clk 0:01:07.8]} 75. Rh5 {[%clk 0:00:11.6]} 75... Rf4 {[%clk 0:01:08.6]}
76. Rg5 {[%clk 0:00:12.7]} 76... Kc6 {[%clk 0:01:09]} 77. Rh5 {[%clk 0:00:13.7]}
77... Kd6 {[%clk 0:01:10.1]} 78. Rg5 {[%clk 0:00:15]} 78... Ke6 {[%clk
0:01:11.5]} 79. Rh5 {[%clk 0:00:16.4]} 79... Ke7 {[%clk 0:01:12.6]} 80. Rg5
{[%clk 0:00:16.8]} 80... Kf6 {[%clk 0:01:13.1]} 81. Ra5 {[%clk 0:00:18.7]} 81...
Rf5 {[%clk 0:01:13.4]} 82. Rxf5+ {[%clk 0:00:18.4]} 82... Kxf5 {[%clk
0:01:14.7]} 83. Kf3 {[%clk 0:00:19.4]} 83... Kg5 {[%clk 0:01:15.8]} 84. Ke4
{[%clk 0:00:20.4]} 84... Kh5 {[%clk 0:01:13.2]} 85. Kf5 {[%clk 0:00:20.7]} 85...
Kh6 {[%clk 0:01:14.4]} 86. Kg4 {[%clk 0:00:21.9]} 86... Kh7 {[%clk 0:01:16.3]}
87. Kxh4 {[%clk 0:00:23]} 87... Kh8 {[%clk 0:01:18.1]} 88. Kg5 {[%clk
0:00:24.6]} 88... Kg8 {[%clk 0:01:20]} 89. Kg6 {[%clk 0:00:26.1]} 89... Kh8
{[%clk 0:01:21.9]} 90. h4 {[%clk 0:00:27.7]} 90... Kg8 {[%clk 0:01:23.8]} 91. h5
{[%clk 0:00:29.3]} 91... Kh8 {[%clk 0:01:25.7]} 92. h6 {[%clk 0:00:30.8]} 92...
Kg8 {[%clk 0:01:27.6]} 93. h7+ {[%clk 0:00:32.4]} 93... Kh8 {[%clk 0:01:29.5]}
94. Kh6 {[%clk 0:00:34]} 1/2-1/2

[Event "*** MasterClass Titled Tuesday Blitz"]
[Site "Chess.com"]
[Date "2017.10.03"]
[Round "8"]
[White "pandamaster3000"]
[Black "AndrewMcStone"]
[Result "1/2-1/2"]
[WhiteElo "2184"]
[BlackElo "2075"]
[TimeControl "180+2"]
[EndTime "14:53:24 PDT"]
[Termination "Game drawn by repetition"]

1. e4 {[%clk 0:03:01.9]} 1... Nc6 {[%clk 0:03:00.8]} 2. Nf3 {[%clk 0:03:01.2]}
2... d6 {[%clk 0:03:01.5]} 3. d4 {[%clk 0:03:01.5]} 3... Nf6 {[%clk 0:03:02.6]}
4. Nc3 {[%clk 0:03:02.8]} 4... g6 {[%clk 0:03:03.7]} 5. h3 {[%clk 0:03:02.1]}
5... Bg7 {[%clk 0:03:05.1]} 6. Be3 {[%clk 0:03:03.6]} 6... O-O {[%clk
0:03:05.2]} 7. Be2 {[%clk 0:03:03.2]} 7... e5 {[%clk 0:03:06.3]} 8. O-O {[%clk
0:02:56.2]} 8... exd4 {[%clk 0:02:47.1]} 9. Nxd4 {[%clk 0:02:58.1]} 9... Bd7
{[%clk 0:02:47.4]} 10. Qd2 {[%clk 0:02:54]} 10... Re8 {[%clk 0:02:47.5]} 11. f3
{[%clk 0:02:49.6]} 11... Nh5 {[%clk 0:02:42.8]} 12. Nxc6 {[%clk 0:02:42.6]}
12... Bxc6 {[%clk 0:02:35.5]} 13. Bd4 {[%clk 0:02:34.8]} 13... Nf4 {[%clk
0:02:08.5]} 14. Bxg7 {[%clk 0:02:30.9]} 14... Qg5 {[%clk 0:02:01.1]} 15. Qxf4
{[%clk 0:01:40.4]} 15... Qxf4 {[%clk 0:02:00.8]} 16. Bd4 {[%clk 0:01:41.9]}
16... a6 {[%clk 0:01:43.6]} 17. Bc4 {[%clk 0:01:40.8]} 17... b5 {[%clk
0:01:22.6]} 18. Bb3 {[%clk 0:01:39.1]} 18... Bb7 {[%clk 0:00:56.4]} 19. Rfe1
{[%clk 0:01:10.1]} 19... c5 {[%clk 0:00:54.6]} 20. Be3 {[%clk 0:01:11.2]} 20...
Qh4 {[%clk 0:00:48.8]} 21. Bd5 {[%clk 0:00:57.2]} 21... Rab8 {[%clk 0:00:43.1]}
22. Rad1 {[%clk 0:00:54]} 22... Qf6 {[%clk 0:00:39.7]} 23. Bc1 {[%clk
0:00:41.3]} 23... b4 {[%clk 0:00:36.5]} 24. Ne2 {[%clk 0:00:38.2]} 24... Bxd5
{[%clk 0:00:35.5]} 25. Rxd5 {[%clk 0:00:40.1]} 25... Re5 {[%clk 0:00:29.6]} 26.
Rd3 {[%clk 0:00:35.5]} 26... Rd8 {[%clk 0:00:19.8]} 27. Red1 {[%clk 0:00:35]}
27... Rh5 {[%clk 0:00:18.8]} 28. Nf4 {[%clk 0:00:29.4]} 28... Rh4 {[%clk
0:00:18.2]} 29. Nd5 {[%clk 0:00:27.5]} 29... Qe6 {[%clk 0:00:18.8]} 30. Bg5
{[%clk 0:00:24.7]} 30... Rxh3 {[%clk 0:00:11.6]} 31. Bxd8 {[%clk 0:00:21.2]}
31... Rh6 {[%clk 0:00:04.9]} 32. Bg5 {[%clk 0:00:20.2]} 32... Rh5 {[%clk
0:00:04.6]} 33. Nf4 {[%clk 0:00:19.9]} 33... Qe5 {[%clk 0:00:02.1]} 34. Nxh5
{[%clk 0:00:21.1]} 34... Qxg5 {[%clk 0:00:03]} 35. Rxd6 {[%clk 0:00:06.2]} 35...
Qxh5 {[%clk 0:00:04.1]} 36. Rd8+ {[%clk 0:00:07.3]} 36... Kg7 {[%clk 0:00:05.2]}
37. R8d5 {[%clk 0:00:08.9]} 37... Qh4 {[%clk 0:00:04.3]} 38. Rxc5 {[%clk
0:00:09.4]} 38... Qe7 {[%clk 0:00:03.5]} 39. Rcd5 {[%clk 0:00:10.5]} 39... Qa7+
{[%clk 0:00:03.5]} 40. R1d4 {[%clk 0:00:10.6]} 40... a5 {[%clk 0:00:04.1]} 41.
Rd7 {[%clk 0:00:11.4]} 41... Qb6 {[%clk 0:00:04.9]} 42. Kf2 {[%clk 0:00:12.9]}
42... Qc5 {[%clk 0:00:05]} 43. Kg3 {[%clk 0:00:09.1]} 43... Qxc2 {[%clk
0:00:06]} 44. Rd2 {[%clk 0:00:11]} 44... Qc4 {[%clk 0:00:06.4]} 45. Kf2 {[%clk
0:00:12.3]} 45... Qxa2 {[%clk 0:00:07]} 46. Ra7 {[%clk 0:00:10.7]} 46... a4
{[%clk 0:00:07.8]} 47. Rdd7 {[%clk 0:00:11]} 47... a3 {[%clk 0:00:08.3]} 48. Kg3
{[%clk 0:00:08.2]} 48... h5 {[%clk 0:00:05.3]} 49. bxa3 {[%clk 0:00:07.9]} 49...
bxa3 {[%clk 0:00:05.9]} 50. e5 {[%clk 0:00:09]} 50... g5 {[%clk 0:00:04.1]} 51.
Kh3 {[%clk 0:00:09.6]} 51... Kg6 {[%clk 0:00:04.6]} 52. Ra6+ {[%clk 0:00:07.4]}
52... Kf5 {[%clk 0:00:05.5]} 53. Rda7 {[%clk 0:00:09]} 53... g4+ {[%clk
0:00:06.3]} 54. Kg3 {[%clk 0:00:09]} 54... h4+ {[%clk 0:00:05.9]} 55. Kxh4
{[%clk 0:00:09.4]} 55... Qf2+ {[%clk 0:00:06.7]} 56. Kh5 {[%clk 0:00:08.2]}
56... Qg3 {[%clk 0:00:06.2]} 57. Rxf7+ {[%clk 0:00:08.4]} 57... Kxe5 {[%clk
0:00:07.2]} 58. f4+ {[%clk 0:00:09.9]} 58... Ke4 {[%clk 0:00:07.7]} 59. Re7+
{[%clk 0:00:10.3]} 59... Kd5 {[%clk 0:00:08.2]} 60. Rd7+ {[%clk 0:00:10.7]}
60... Kc5 {[%clk 0:00:08.9]} 61. Ra5+ {[%clk 0:00:11]} 61... Kb6 {[%clk
0:00:09.4]} 62. Rda7 {[%clk 0:00:10.8]} 62... Qxf4 {[%clk 0:00:07.6]} 63. R7a6+
{[%clk 0:00:11.6]} 63... Kb7 {[%clk 0:00:08]} 64. Ra7+ {[%clk 0:00:12.9]} 64...
Kb8 {[%clk 0:00:07.7]} 65. Ra8+ {[%clk 0:00:14.1]} 65... Kb7 {[%clk 0:00:06.3]}
66. R8a7+ {[%clk 0:00:15.3]} 66... Kb8 {[%clk 0:00:07.1]} 67. Rxa3 {[%clk
0:00:16.2]} 67... Qf5+ {[%clk 0:00:05.8]} 68. Kh4 {[%clk 0:00:17.5]} 68... Qf2+
{[%clk 0:00:06.1]} 69. g3 {[%clk 0:00:17.4]} 69... Qf6+ {[%clk 0:00:04.2]} 70.
Kxg4 {[%clk 0:00:18.8]} 70... Qg6+ {[%clk 0:00:05.2]} 71. Kf3 {[%clk 0:00:19.9]}
71... Qf5+ {[%clk 0:00:06.1]} 72. Kg2 {[%clk 0:00:21]} 72... Qe4+ {[%clk
0:00:06.1]} 73. Kh3 {[%clk 0:00:22]} 73... Qf5+ {[%clk 0:00:06.4]} 74. g4 {[%clk
0:00:23.3]} 74... Qf1+ {[%clk 0:00:07.2]} 75. Kh4 {[%clk 0:00:24.8]} 75... Qh1+
{[%clk 0:00:07.3]} 76. Kg5 {[%clk 0:00:26.1]} 76... Qd5+ {[%clk 0:00:07.8]} 77.
Kh6 {[%clk 0:00:27]} 77... Qe6+ {[%clk 0:00:08.3]} 78. Kh5 {[%clk 0:00:28.5]}
78... Qf7+ {[%clk 0:00:07.6]} 79. Kh4 {[%clk 0:00:29.7]} 79... Qh7+ {[%clk
0:00:07.5]} 80. Kg3 {[%clk 0:00:29.9]} 80... Qg6 {[%clk 0:00:04.1]} 81. Kh4
{[%clk 0:00:29.7]} 81... Qh6+ {[%clk 0:00:04.3]} 82. Kg3 {[%clk 0:00:30.5]}
82... Qd6+ {[%clk 0:00:05.6]} 83. Kh3 {[%clk 0:00:29.9]} 83... Qh6+ {[%clk
0:00:06.1]} 84. Kg3 {[%clk 0:00:31.5]} 84... Qd6+ {[%clk 0:00:06.6]} 85. Kh4
{[%clk 0:00:33]} 85... Qh6+ {[%clk 0:00:07.3]} 86. Kg3 {[%clk 0:00:34.7]}
1/2-1/2

[Event "*** MasterClass Titled Tuesday Blitz"]
[Site "Chess.com"]
[Date "2017.10.03"]
[Round "8"]
[White "MITerryble"]
[Black "OparinGrigoriy"]
[Result "1/2-1/2"]
[WhiteElo "2635"]
[BlackElo "2660"]
[TimeControl "180+2"]
[EndTime "14:54:45 PDT"]
[Termination "Game drawn by repetition"]

1. d4 {[%clk 0:03:01.2]} 1... Nf6 {[%clk 0:02:41.4]} 2. Nf3 {[%clk 0:03:01.5]}
2... e6 {[%clk 0:02:42.5]} 3. c4 {[%clk 0:03:02.3]} 3... b6 {[%clk 0:02:43.5]}
4. g3 {[%clk 0:03:02.3]} 4... Ba6 {[%clk 0:02:44.8]} 5. Qa4 {[%clk 0:03:03.2]}
5... Bb7 {[%clk 0:02:45.1]} 6. Bg2 {[%clk 0:03:04.3]} 6... c5 {[%clk 0:02:46.5]}
7. dxc5 {[%clk 0:03:06.2]} 7... bxc5 {[%clk 0:02:46.3]} 8. O-O {[%clk
0:03:06.9]} 8... Qc7 {[%clk 0:02:43.6]} 9. Nc3 {[%clk 0:03:07.6]} 9... a6 {[%clk
0:02:38]} 10. Bf4 {[%clk 0:03:08.2]} 10... Bd6 {[%clk 0:02:33.5]} 11. Bg5 {[%clk
0:02:54.3]} 11... Nc6 {[%clk 0:02:25]} 12. Rfd1 {[%clk 0:02:53.8]} 12... Be7
{[%clk 0:02:24.2]} 13. Bf4 {[%clk 0:02:53.5]} 13... d6 {[%clk 0:02:23.9]} 14.
Qc2 {[%clk 0:02:49.4]} 14... O-O {[%clk 0:02:23.2]} 15. Na4 {[%clk 0:02:47.9]}
15... Nd4 {[%clk 0:02:12.9]} 16. Nxd4 {[%clk 0:02:36.9]} 16... cxd4 {[%clk
0:02:14.8]} 17. Bxb7 {[%clk 0:02:30]} 17... Qxb7 {[%clk 0:02:16.7]} 18. b3
{[%clk 0:02:31.2]} 18... h6 {[%clk 0:02:11.6]} 19. Qd3 {[%clk 0:02:20.6]} 19...
e5 {[%clk 0:02:00.6]} 20. Bd2 {[%clk 0:02:21.2]} 20... Rac8 {[%clk 0:01:56.8]}
21. e3 {[%clk 0:02:20.2]} 21... Qf3 {[%clk 0:01:56.1]} 22. Be1 {[%clk
0:02:12.4]} 22... d5 {[%clk 0:01:06.8]} 23. Nb6 {[%clk 0:02:04.5]} 23... Rc6
{[%clk 0:00:41.5]} 24. Nxd5 {[%clk 0:02:01.8]} 24... Nxd5 {[%clk 0:00:42.8]} 25.
cxd5 {[%clk 0:02:03.7]} 25... Qxd5 {[%clk 0:00:44.5]} 26. exd4 {[%clk
0:02:04.4]} 26... e4 {[%clk 0:00:46.1]} 27. Qe2 {[%clk 0:01:58.7]} 27... Bf6
{[%clk 0:00:38.1]} 28. Bd2 {[%clk 0:01:51.4]} 28... Rfc8 {[%clk 0:00:36.7]} 29.
Be3 {[%clk 0:01:50.5]} 29... h5 {[%clk 0:00:31.1]} 30. h4 {[%clk 0:01:49.8]}
30... a5 {[%clk 0:00:29.7]} 31. Rab1 {[%clk 0:01:46.4]} 31... Rc3 {[%clk
0:00:27.9]} 32. b4 {[%clk 0:01:32]} 32... axb4 {[%clk 0:00:20.8]} 33. Rxb4
{[%clk 0:01:33.3]} 33... Rc2 {[%clk 0:00:22.3]} 34. Rb5 {[%clk 0:01:17.2]} 34...
Rxe2 {[%clk 0:00:18.8]} 35. Rxd5 {[%clk 0:01:17.6]} 35... Rxa2 {[%clk
0:00:18.9]} 36. Rxh5 {[%clk 0:01:18.4]} 36... Rd8 {[%clk 0:00:20.4]} 37. Rf5
{[%clk 0:01:15.1]} 37... Ra3 {[%clk 0:00:20.9]} 38. Kf1 {[%clk 0:00:45.3]} 38...
Rd3 {[%clk 0:00:21.3]} 39. Rxd3 {[%clk 0:00:45.1]} 39... exd3 {[%clk 0:00:23.2]}
40. Rf4 {[%clk 0:00:46]} 40... Be7 {[%clk 0:00:22.9]} 41. Bd2 {[%clk 0:00:43.2]}
41... Bf6 {[%clk 0:00:21.6]} 42. Be3 {[%clk 0:00:42.8]} 42... Be7 {[%clk
0:00:22.6]} 43. Rf3 {[%clk 0:00:37.4]} 43... Bb4 {[%clk 0:00:21.6]} 44. h5
{[%clk 0:00:20.8]} 44... Ra8 {[%clk 0:00:21.9]} 45. Bg5 {[%clk 0:00:13.2]} 45...
Ra1+ {[%clk 0:00:21.7]} 46. Kg2 {[%clk 0:00:14.3]} 46... d2 {[%clk 0:00:23.3]}
47. Bxd2 {[%clk 0:00:15.6]} 47... Bxd2 {[%clk 0:00:25.2]} 48. Rd3 {[%clk
0:00:16.4]} 48... Bb4 {[%clk 0:00:26.2]} 49. Rb3 {[%clk 0:00:17.4]} 49... Bf8
{[%clk 0:00:26.3]} 50. Rb8 {[%clk 0:00:17.9]} 50... Ra5 {[%clk 0:00:27.7]} 51.
g4 {[%clk 0:00:17.8]} 51... Rd5 {[%clk 0:00:29.3]} 52. f4 {[%clk 0:00:15.6]}
52... Rxd4 {[%clk 0:00:30]} 53. Kf3 {[%clk 0:00:17.5]} 53... f6 {[%clk
0:00:30.2]} 54. g5 {[%clk 0:00:18.2]} 54... Rd5 {[%clk 0:00:25.4]} 55. g6 {[%clk
0:00:17.6]} 55... Rxh5 {[%clk 0:00:24.9]} 56. Kg4 {[%clk 0:00:18]} 56... Rh1
{[%clk 0:00:19.9]} 57. f5 {[%clk 0:00:19.9]} 57... Rf1 {[%clk 0:00:20.2]} 58.
Rc8 {[%clk 0:00:18.4]} 58... Rb1 {[%clk 0:00:20.9]} 59. Ra8 {[%clk 0:00:18.9]}
59... Rb4+ {[%clk 0:00:22.5]} 60. Kf3 {[%clk 0:00:19.4]} 60... Rc4 {[%clk
0:00:23.1]} 61. Kg3 {[%clk 0:00:20]} 61... Rd4 {[%clk 0:00:23.9]} 62. Kf3 {[%clk
0:00:21.2]} 62... Rd5 {[%clk 0:00:25.3]} 63. Ke4 {[%clk 0:00:21.6]} 63... Rd7
{[%clk 0:00:26.7]} 64. Kf4 {[%clk 0:00:21.7]} 64... Re7 {[%clk 0:00:28.1]} 65.
Kg4 {[%clk 0:00:22.1]} 65... Rb7 {[%clk 0:00:29.7]} 66. Kf4 {[%clk 0:00:23.2]}
66... Rb4+ {[%clk 0:00:31.1]} 67. Kf3 {[%clk 0:00:24.3]} 67... Rb1 {[%clk
0:00:32.7]} 68. Kf4 {[%clk 0:00:25.2]} 68... Rf1+ {[%clk 0:00:34.2]} 69. Kg4
{[%clk 0:00:26.4]} 69... Rg1+ {[%clk 0:00:34.1]} 70. Kf3 {[%clk 0:00:27.5]}
70... Rh1 {[%clk 0:00:34.4]} 71. Kg4 {[%clk 0:00:28.3]} 71... Rh6 {[%clk
0:00:34.7]} 72. Kf4 {[%clk 0:00:28.9]} 72... Rh8 {[%clk 0:00:35.7]} 73. Kg4
{[%clk 0:00:28.9]} 73... Rh1 {[%clk 0:00:36.2]} 74. Kf4 {[%clk 0:00:30]} 74...
Rb1 {[%clk 0:00:37.4]} 75. Ke4 {[%clk 0:00:31]} 75... Rb4+ {[%clk 0:00:38.4]}
76. Kf3 {[%clk 0:00:31.9]} 76... Rb5 {[%clk 0:00:38.7]} 77. Kf4 {[%clk
0:00:32.6]} 77... Rb7 {[%clk 0:00:39.6]} 78. Kg4 {[%clk 0:00:33.3]} 78... Rb4+
{[%clk 0:00:38.2]} 79. Kf3 {[%clk 0:00:34.3]} 79... Rc4 {[%clk 0:00:38.6]} 80.
Ke3 {[%clk 0:00:34.8]} 80... Rc3+ {[%clk 0:00:38.6]} 81. Kf4 {[%clk 0:00:35.7]}
81... Ra3 {[%clk 0:00:40.2]} 82. Rc8 {[%clk 0:00:35.6]} 82... Ra7 {[%clk
0:00:39.6]} 83. Kf3 {[%clk 0:00:36.1]} 83... Rb7 {[%clk 0:00:41.1]} 84. Ra8
{[%clk 0:00:35.8]} 84... Rb3+ {[%clk 0:00:42]} 85. Ke4 {[%clk 0:00:36.3]} 85...
Ra3 {[%clk 0:00:42.1]} 86. Rc8 {[%clk 0:00:36.3]} 86... Ra4+ {[%clk 0:00:43.6]}
87. Kf3 {[%clk 0:00:35.5]} 87... Ra7 {[%clk 0:00:45.2]} 88. Rb8 {[%clk
0:00:35.7]} 88... Ra4 {[%clk 0:00:43.5]} 89. Kg3 {[%clk 0:00:35.8]} 89... Rb4
{[%clk 0:00:42]} 90. Ra8 {[%clk 0:00:35.9]} 90... Rb5 {[%clk 0:00:43.1]} 91. Kg4
{[%clk 0:00:36.4]} 91... Re5 {[%clk 0:00:43.2]} 92. Rd8 {[%clk 0:00:37.1]} 92...
Re4+ {[%clk 0:00:43.3]} 93. Kf3 {[%clk 0:00:38.2]} 93... Ra4 {[%clk 0:00:44.7]}
94. Kg3 {[%clk 0:00:39.1]} 94... Ra6 {[%clk 0:00:38.4]} 95. Kg4 {[%clk
0:00:39.1]} 95... Rd6 {[%clk 0:00:39.1]} 96. Ra8 {[%clk 0:00:36.8]} 96... Rd7
{[%clk 0:00:40.4]} 97. Kf3 {[%clk 0:00:06.4]} 97... Rb7 {[%clk 0:00:39.5]} 98.
Kf4 {[%clk 0:00:07.4]} 98... Rb4+ {[%clk 0:00:40.8]} 99. Kf3 {[%clk 0:00:08.4]}
1/2-1/2

[Event "*** MasterClass Titled Tuesday Blitz"]
[Site "Chess.com"]
[Date "2017.10.03"]
[Round "9"]
[White "ehrenfeld"]
[Black "pandamaster3000"]
[Result "1-0"]
[WhiteElo "2338"]
[BlackElo "2170"]
[TimeControl "180+2"]
[EndTime "14:59:15 PDT"]
[Termination "ehrenfeld won by resignation"]

1. e4 {[%clk 0:03:01.9]} 1... e6 {[%clk 0:03:00.9]} 2. d3 {[%clk 0:03:02.4]}
2... d5 {[%clk 0:03:02.2]} 3. Qe2 {[%clk 0:03:03.5]} 3... Be7 {[%clk 0:02:59.1]}
4. Nf3 {[%clk 0:03:04.2]} 4... Nf6 {[%clk 0:03:00]} 5. g3 {[%clk 0:03:05.2]}
5... O-O {[%clk 0:03:01]} 6. Bg2 {[%clk 0:03:06.2]} 6... Nc6 {[%clk 0:03:01.4]}
7. O-O {[%clk 0:03:02.2]} 7... dxe4 {[%clk 0:03:02.1]} 8. dxe4 {[%clk
0:03:02.6]} 8... e5 {[%clk 0:03:01.9]} 9. Rd1 {[%clk 0:03:02.5]} 9... Qe8 {[%clk
0:03:03.2]} 10. h3 {[%clk 0:03:01]} 10... h6 {[%clk 0:03:01.9]} 11. Nc3 {[%clk
0:03:01.6]} 11... Be6 {[%clk 0:03:01.5]} 12. Nd5 {[%clk 0:03:01.9]} 12... Rc8
{[%clk 0:02:45.5]} 13. Qb5 {[%clk 0:02:46.4]} 13... Bxd5 {[%clk 0:02:12]} 14.
exd5 {[%clk 0:02:45.3]} 14... Nd4 {[%clk 0:02:13]} 15. Nxd4 {[%clk 0:02:42.5]}
15... exd4 {[%clk 0:02:13.1]} 16. Qxb7 {[%clk 0:02:11.3]} 16... Bc5 {[%clk
0:02:09.4]} 17. Qa6 {[%clk 0:02:03]} 17... Qd7 {[%clk 0:01:56.2]} 18. Bd2 {[%clk
0:01:59.8]} 18... Nxd5 {[%clk 0:01:53.7]} 19. Qc4 {[%clk 0:01:59.4]} 19... Ne3
{[%clk 0:01:42.2]} 20. Bxe3 {[%clk 0:01:53]} 1-0

[Event "*** MasterClass Titled Tuesday Blitz"]
[Site "Chess.com"]
[Date "2017.10.03"]
[Round "9"]
[White "TheFlaminGM"]
[Black "MITerryble"]
[Result "1-0"]
[WhiteElo "2600"]
[BlackElo "2626"]
[TimeControl "180+2"]
[EndTime "14:59:18 PDT"]
[Termination "TheFlaminGM won by resignation"]

1. e4 {[%clk 0:03:01.9]} 1... e6 {[%clk 0:02:57.1]} 2. d4 {[%clk 0:03:02.6]}
2... d5 {[%clk 0:02:59]} 3. Nd2 {[%clk 0:03:03.8]} 3... Be7 {[%clk 0:02:54.1]}
4. e5 {[%clk 0:03:04.4]} 4... c5 {[%clk 0:02:54.6]} 5. c3 {[%clk 0:03:00.9]}
5... cxd4 {[%clk 0:02:55.5]} 6. cxd4 {[%clk 0:03:00.9]} 6... Nc6 {[%clk
0:02:56.9]} 7. Bd3 {[%clk 0:02:58.9]} 7... Qb6 {[%clk 0:02:55.8]} 8. Ndf3 {[%clk
0:02:56.6]} 8... Bb4+ {[%clk 0:02:54.3]} 9. Kf1 {[%clk 0:02:54.6]} 9... Bd7
{[%clk 0:02:53.5]} 10. Ne2 {[%clk 0:02:52.6]} 10... Be7 {[%clk 0:02:50.7]} 11.
g3 {[%clk 0:02:50.8]} 11... Nb4 {[%clk 0:02:46.8]} 12. Bb1 {[%clk 0:02:49.4]}
12... Rc8 {[%clk 0:02:46.8]} 13. a3 {[%clk 0:02:47.5]} 13... Qa6 {[%clk
0:02:40.6]} 14. Kg2 {[%clk 0:02:48.4]} 14... Nc6 {[%clk 0:02:33.8]} 15. Bd3
{[%clk 0:02:44.1]} 15... Qb6 {[%clk 0:02:32.7]} 16. b4 {[%clk 0:02:36.8]} 16...
a6 {[%clk 0:02:30.2]} 17. h4 {[%clk 0:02:30.1]} 17... Na7 {[%clk 0:02:29.5]} 18.
Be3 {[%clk 0:02:23]} 18... Bb5 {[%clk 0:02:27.1]} 19. Bc2 {[%clk 0:02:07.7]}
19... Qc6 {[%clk 0:02:22.2]} 20. Rc1 {[%clk 0:01:59.4]} 20... Qd7 {[%clk
0:02:21.5]} 21. Nf4 {[%clk 0:01:46.8]} 21... h5 {[%clk 0:02:15.8]} 22. Ng5
{[%clk 0:01:40.5]} 22... g6 {[%clk 0:02:15.5]} 23. Nxg6 {[%clk 0:01:22]} 1-0